[Event "WALTON 1st Div Women League 2023"]
[Site "Dhaka"]
[Date "2023.03.28"]
[Round "7.1"]
[White "Nusrat, Jahan Liza"]
[Black "Rashma, Alam"]
[Result "1-0"]
[ECO "C41"]
[WhiteElo "1573"]
[BlackElo "1047"]
[Annotator "NA RC COMBH"]
[PlyCount "107"]
[EventDate "2023.03.22"]
[EventType "team-tourn"]
[EventCountry "BAN"]
[SourceTitle "playchess.com"]
[Source "ChessBase"]
[SourceQuality "1"]
[TimeControl "5400+30"]

1. e4 {[%emt 0:00:03]} e5 {[%emt 0:00:05]} 2. Nf3 {[%emt 0:00:04]} d6 {[%emt 0:00:20]} 3. Bc4 {[%emt 0:00:04]} Nh6 {[%emt 0:00:08]} 4. d4 {[%emt 0:01:02]} Nc6 {[%emt 0:01:21]} 5. dxe5 {[%emt 0:01:08]} Nxe5 {[%emt 0:00:38]} 6. Nxe5 {[%emt 0:00:05]} dxe5 {[%emt 0:00:40]} 7. Qxd8+ {[%emt 0:00:05]} Kxd8 {[%emt 0:00:43]} 8. Bxh6 {[%emt 0:00:03]} gxh6 {[%emt 0:01:10]} 9. Bxf7 {[%emt 0:00:03]} b6 {[%emt 0:00:53]} 10. Bd5 {[%emt 0:00:29]} Rb8 {[%emt 0:00:43]} 11. Nc3 {[%emt 0:00:53]} Bd7 {[%emt 0:00:11]} 12. O-O-O {[%emt 0:01:26]} Bd6 {[%emt 0:01:08]} 13. a3 {[%emt 0:01:04]} Rf8 {[%emt 0:00:44]} 14. f3 {[%emt 0:00:27]} Ke7 {[%emt 0:00:37]} 15. Ne2 {[%emt 0:02:01]} Rf6 {[%emt 0:00:31]} 16. Ng3 {[%emt 0:01:25]} Rbf8 {[%emt 0:04:58]} 17. b4 {[%emt 0:02:53]} c6 {[%emt 0:01:54]} 18. Bb3 {[%emt 0:00:32]} Rc8 {[%emt 0:04:26]} 19. c4 {[%emt 0:03:21]} c5 {[%emt 0:01:27]} 20. b5 {[%emt 0:00:14]} Rg8 {[%emt 0:03:24]} 21. Rd2 {[%emt 0:00:14]} Rg5 {[%emt 0:01:35]} 22. Nf1 {[%emt 0:02:19]} h5 {[%emt 0:00:53]} 23. Ne3 {[%emt 0:00:04]} Be6 {[%emt 0:05:48]} 24. Rhd1 {[%emt 0:00:31]} Bc7 {[%emt 0:01:37]} 25. Bc2 {[%emt 0:06:54]} Rf8 {[%emt 0:00:36]} 26. Nd5+ {[%emt 0:02:26]} Bxd5 {[%emt 1:07:00]} 27. exd5 {[%emt 1:14:10]} Kd6 {[%emt 0:00:00]} 28. Bxh7 {[%emt 0:00:00]} Bd8 {[%emt 0:00:00]} 29. Re2 {[%emt 0:00:00]} Bf6 {[%emt 0:00:00]} 30. Rde1 {[%emt 0:00:00]} Rf7 {[%emt 0:00:00]} 31. Bd3 {[%emt 0:00:00]} Bh8 {[%emt 0:00:00]} 32. a4 {[%emt 0:00:00]} a5 {[%emt 0:00:00]} 33. Kc2 {[%emt 0:00:00]} Rf4 {[%emt 0:00:00]} 34. Be4 {[%emt 0:00:00]} Rf8 {[%emt 0:00:00]} 35. g3 {[%emt 0:00:00]} Rf7 {[%emt 0:00:00]} 36. Rf1 {[%emt 0:00:00]} Rf8 {[%emt 0:00:00]} 37. f4 {[%emt 0:00:00]} exf4 {[%emt 0:00:00]} 38. gxf4 {[%emt 0:00:00]} Rg4 {[%emt 0:00:00]} 39. f5 {[%emt 0:00:00]} h4 {[%emt 0:00:00]} 40. Bd3 {[%emt 0:00:00]} Bf6 {[%emt 0:00:00]} 41. Re6+ {[%emt 0:00:00]} Kc7 {[%emt 0:00:00]} 42. Rf2 {[%emt 0:00:00]} Rg7 {[%emt 0:00:00]} 43. Rfe2 {[%emt 0:00:00]} Rgf7 {[%emt 0:00:00]} 44. Rc6+ {[%emt 0:00:00]} Kb7 {[%emt 0:00:00]} 45. Ree6 {[%emt 0:00:00]} Bd4 {[%emt 0:00:00]} 46. Rxb6+ {[%emt 0:00:00]} Kc7 {[%emt 0:00:00]} 47. Ra6 {[%emt 0:00:00]} Kb7 {[%emt 0:04:22]} 48. Rxa5 {[%emt 0:00:00]} Ra8 {[%emt 0:00:30]} 49. Rxa8 {[%emt 0:00:00]} Kxa8 {[%emt 0:00:09]} 50. a5 {[%emt 0:00:00]} Ka7 {[%emt 0:01:32]} 51. Be4 {[%emt 0:00:00]} Kb8 {[%emt 0:01:45]} 52. Re8+ {[%emt 0:00:00]} Ka7 {[%emt 0:00:54]} 53. d6 {[%emt 0:00:00]} Rd7 {[%emt 0:00:30]} 54. Ra8# {[%emt 0:00:00]} 1-0

[Event "WALTON 1st Div Women League 2023"]
[Site "Dhaka"]
[Date "2023.03.28"]
[Round "7.3"]
[White "Neelava, Choudhury"]
[Black "Monika, Kundu"]
[Result "1-0"]
[ECO "C66"]
[WhiteElo "1522"]
[BlackElo "1333"]
[Annotator "NA RC COMBH"]
[PlyCount "65"]
[EventDate "2023.03.22"]
[EventType "team-tourn"]
[EventCountry "BAN"]
[SourceTitle "playchess.com"]
[Source "ChessBase"]
[SourceQuality "1"]
[TimeControl "5400+30"]

1. e4 {[%emt 0:11:15]} e5 {[%emt 0:00:10]} 2. Nf3 {[%emt 0:00:04]} Nc6 {[%emt 0:00:06]} 3. Bb5 {[%emt 0:00:11]} d6 {[%emt 0:00:29]} 4. c3 {[%emt 0:00:24]} Bd7 {[%emt 0:00:14]} 5. O-O {[%emt 0:00:13]} Nf6 {[%emt 0:00:20]} 6. d4 {[%emt 0:00:07]} Qe7 {[%emt 0:04:52]} 7. Nbd2 {[%emt 0:03:01]} O-O-O {[%emt 0:00:52]} 8. Re1 {[%emt 0:04:10]} h6 {[%emt 0:01:01]} 9. Nc4 {[%emt 0:00:10]} g5 {[%emt 0:02:21]} 10. Qa4 {[%emt 0:07:00]} g4 {[%emt 0:05:58]} 11. Nfd2 {[%emt 0:00:17]} exd4 {[%emt 0:03:24]} 12. Bxc6 {[%emt 0:02:50]} Bxc6 {[%emt 0:00:21]} 13. Qxa7 {[%emt 0:00:38]} d5 {[%emt 0:00:12]} 14. Na5 {[%emt 0:02:13]} Qc5 {[%emt 0:02:30]} 15. Nxc6 {[%emt 0:02:57]} Qxc6 {[%emt 0:01:02]} 16. e5 {[%emt 0:04:15]} Bc5 {[%emt 0:00:27]} 17. Qa5 {[%emt 0:00:58]} Ne4 {[%emt 0:01:08]} 18. Nxe4 {[%emt 0:01:16]} dxe4 {[%emt 0:00:11]} 19. cxd4 {[%emt 0:01:10]} Bxd4 {[%emt 0:00:14]} 20. Be3 {[%emt 0:01:28]} Qd5 {[%emt 0:02:06]} 21. Qa8+ {[%emt 0:03:12]} Kd7 {[%emt 1:13:02]} 22. Qa4+ {[%emt 0:00:13]} Ke6 {[%emt 0:00:30]} 23. Red1 {[%emt 0:04:09]} c5 {[%emt 0:00:00]} 24. Rac1 {[%emt 0:01:42]} Kxe5 {[%emt 0:01:00]} 25. Qb5 {[%emt 0:49:07]} Rc8 {[%emt 0:00:30]} 26. b4 {[%emt 0:00:30]} Ke6 {[%emt 0:00:00]} 27. bxc5 {[%emt 0:00:00]} Rxc5 {[%emt 0:00:00]} 28. Rxc5 {[%emt 0:00:00]} Qxc5 {[%emt 0:00:00]} 29. Qxc5 {[%emt 0:00:00]} Bxc5 {[%emt 0:00:00]} 30. Bxc5 {[%emt 0:00:00]} h5 {[%emt 0:00:00]} 31. Rd6+ {[%emt 0:00:00]} Ke5 {[%emt 0:03:00]} 32. Bd4+ {[%emt 0:00:00]} Kxd6 {[%emt 0:00:00]} 33. Bxh8 {[%emt 0:00:00]} 1-0

[Event "WALTON 1st Div Women League 2023"]
[Site "Dhaka"]
[Date "2023.03.28"]
[Round "7.5"]
[White "Nusrat Jahan, Alo"]
[Black "Wadifa, Ahmed"]
[Result "0-1"]
[ECO "D02"]
[WhiteElo "1787"]
[BlackElo "1811"]
[Annotator "NA RC COMBH"]
[PlyCount "102"]
[EventDate "2023.03.22"]
[EventType "team-tourn"]
[EventCountry "BAN"]
[SourceTitle "playchess.com"]
[Source "ChessBase"]
[SourceQuality "1"]
[TimeControl "5400+30"]

1. d4 {[%emt 0:00:04]} Nf6 {[%emt 0:00:07]} 2. Bf4 {[%emt 0:00:13]} e6 {[%emt 0:00:09]} 3. Nf3 {[%emt 0:00:13]} c5 {[%emt 0:00:09]} 4. c3 {[%emt 0:00:12]} d5 {[%emt 0:05:52]} 5. e3 {[%emt 0:01:32]} Qb6 {[%emt 0:00:14]} 6. Qc2 $15 {[%emt 0:04:14]} c4 {[%emt 0:04:34]} 7. Nbd2 {[%emt 0:01:48]} Be7 {[%emt 0:01:31]} 8. b3 {[%emt 0:06:29]} cxb3 {[%emt 0:07:43]} 9. axb3 {[%emt 0:01:25]} O-O {[%emt 0:03:50]} 10. Bd3 {[%emt 0:03:05]} Nc6 {[%emt 0:04:08]} 11. Ne5 {[%emt 0:06:07]} h6 {[%emt 0:09:40]} 12. g4 {[%emt 0:14:51]} Nxe5 {[%emt 0:11:47]} 13. dxe5 {[%emt 0:01:04]} Nd7 {[%emt 0:00:57]} 14. h4 {[%emt 0:11:40]} Nc5 {[%emt 0:08:17]} 15. Bh7+ {[%emt 0:03:05]} Kh8 {[%emt 0:01:00]} 16. b4 {[%emt 0:05:23]} Ne4 {[%emt 0:03:29]} 17. Nxe4 {[%emt 0:01:53]} dxe4 {[%emt 0:00:10]} 18. Bxe4 {[%emt 0:01:11]} Bd7 {[%emt 0:06:07]} 19. g5 {[%emt 0:03:22]} Rac8 {[%emt 0:00:44]} 20. Rb1 {[%emt 0:06:15]} Bc6 {[%emt 0:02:40]} 21. gxh6 {[%emt 0:01:56]} g6 {[%emt 0:00:45]} 22. Bg5 {[%emt 0:02:38]} Bxe4 {[%emt 0:18:25]} 23. Qxe4 {[%emt 0:00:19]} f5 {[%emt 0:00:43]} 24. Qd4 {[%emt 0:03:17]} Qc6 {[%emt 0:00:28]} 25. O-O {[%emt 0:00:51]} Rcd8 {[%emt 0:02:11]} 26. Qf4 {[%emt 0:02:31]} Bxg5 {[%emt 0:00:08]} 27. hxg5 {[%emt 0:01:30]} Rd7 {[%emt 0:01:25]} 28. c4 {[%emt 0:04:42]} Rfd8 {[%emt 0:00:08]} 29. Rbc1 {[%emt 0:03:29]} a6 {[%emt 0:01:07]} 30. Kh2 {[%emt 0:02:51]} Kh7 {[%emt 0:00:35]} 31. Kg3 {[%emt 0:00:42]} Qc7 {[%emt 0:00:57]} 32. b5 {[%emt 0:02:56]} a5 {[%emt 0:01:01]} 33. Kh3 {[%emt 0:02:06]} Qc5 {[%emt 0:02:01]} 34. Qg3 {[%emt 0:02:30]} a4 {[%emt 0:03:50]} 35. Rfe1 {[%emt 0:00:52]} Rd3 {[%emt 0:00:20]} 36. Qf3 {[%emt 0:00:15]} R8d7 {[%emt 0:00:08]} 37. Red1 {[%emt 0:00:37]} Rxd1 {[%emt 0:00:30]} 38. Rxd1 {[%emt 0:00:01]} Rc7 {[%emt 0:00:13]} 39. Qf4 {[%emt 0:01:10]} Qe7 {[%emt 0:00:45]} 40. c5 {[%emt 0:00:33]} Rxc5 {[%emt 0:01:07]} 41. Qb4 {[%emt 0:00:31]} b6 {[%emt 0:00:14]} 42. f4 {[%emt 0:00:18]} Qb7 {[%emt 0:00:14]} 43. Kg3 {[%emt 0:00:17]} Rc2 {[%emt 0:00:16]} 44. Rd2 {[%emt 0:00:16]} Rc1 {[%emt 0:00:20]} 45. Rg2 {[%emt 0:00:42]} Rf1 {[%emt 0:00:16]} 46. e4 {[%emt 0:00:52]} fxe4 {[%emt 0:00:03]} 47. Qxa4 {[%emt 0:00:36]} e3 {[%emt 0:00:12]} 48. Kh2 {[%emt 0:00:24]} e2 {[%emt 0:00:12]} 49. Rxe2 {[%emt 0:00:29]} Qh1+ {[%emt 0:00:37]} 50. Kg3 {[%emt 0:00:01]} Rf3+ {[%emt 0:00:08]} 51. Kg4 {[%emt 0:00:11]} Qh3# {[%emt 0:00:03]} 0-1

[Event "WALTON 1st Div Women League 2023"]
[Site "Dhaka"]
[Date "2023.03.28"]
[Round "7.6"]
[White "Ahmed, Walijah"]
[Black "Srija, Seshadri"]
[Result "0-1"]
[ECO "C70"]
[WhiteElo "1920"]
[BlackElo "2194"]
[Annotator "TA"]
[PlyCount "132"]
[EventDate "2023.03.22"]
[EventType "team-tourn"]
[EventCountry "BAN"]
[SourceTitle "playchess.com"]
[Source "ChessBase"]
[SourceQuality "1"]
[TimeControl "5400+30"]

{[%evp 9,132,20,37,19,26,27,38,29,36,29,50,48,39,53,62,62,55,28,81,36,58,-17,-28,-41,0,-16,0,0,2,5,16,21,21,10,0,0,34,-8,-14,-9,26,-32,-35,-45,-25,-48,-31,-56,-47,-40,-48,-35,-24,-66,-26,-112,-104,-96,-95,-135,-116,-177,-106,-107,-104,-95,0,0,0,-8,-8,-24,-13,-18,-16,-16,0,-21,-25,-51,-53,-121,-113,-113,-110,-289,-280,-249,-100,-100,-100,-100,-100,-100,-100,-100,-100,-100,-100,-107,-100,-100,-87,-243,-87,-87,0,-243,-243,-29972,-29972,-29972,-29971,-29971,-29971,-29975,-29976,-29984,-29982,-29982,-29983,-29983,-29984,-29984,-29983]} 1. e4 {[%emt 0:00:03]} e5 {[%emt 0:00:14]} 2. Nf3 {[%emt 0:00:06]} Nc6 {[%emt 0:00:06]} 3. Bb5 {[%emt 0:00:13]} a6 {[%emt 0:00:12]} 4. Ba4 {[%emt 0:00:11]} g6 {[%emt 0:00:12]} 5. c3 {[%emt 0:02:12][%cal Bc2c3,Bc3d4,Bd4d5][%mdl 32]} Bg7 {[%emt 0:00:11]} 6. d4 {[%emt 0:01:02] C70: Ruy Lopez: 3...a6 4 Ba4, Norwegian and Delayed Schliemann.} exd4 {[%emt 0:00:08]} 7. cxd4 {[%emt 0:00:06]} b5 {[%emt 1:32:57]} 8. Bc2 {[%emt 0:00:44] White is slightly better.} d6 {[%emt 0:00:00]} 9. d5 {[%emt 0:00:50]} Nb4 {[%emt 0:00:00][%cal Bc6b4,Bb4a6,Ba6c5][%mdl 32]} 10. Bb3 {[%emt 0:00:56]} a5 $1 {[%emt 0:00:00]} 11. a3 {[%emt 0:00:52]} Na6 {[%emt 0:00:00]} 12. O-O {[%emt 0:01:03] [#]} Nc5 $146 {[%emt 0:00:00][%cal Og8f6]} ({Predecessor:} 12... Ne7 13. Re1 Nc5 14. Bc2 O-O 15. Nc3 Rb8 16. Nd4 b4 17. axb4 axb4 18. Nce2 h6 {1-0 Prraneeth,V (2400)-Pap,M (2372) Novi Sad TS Mix 237th 2022 (7)}) 13. Bc2 {[%emt 0:00:17]} Nf6 {[%emt 0:00:00]} (13... Bd7 $11 {remains equal.}) 14. Nc3 {[%emt 0:05:16]} O-O {[%emt 0:00:00]} 15. h3 {[%emt 0:04:20]} (15. Nxb5 Ba6 16. a4 Nfxe4 $15) (15. Nd4 $1 $14) 15... Ba6 $11 {[%emt 0:00:00]} 16. Re1 $1 {[%emt 0:06:54]} b4 {[%emt 0:00:00]} (16... Re8 $5 {[%cal Rb5b4]}) 17. Na4 {[%emt 0:03:15] [#]} b3 $1 {[%emt 0:00:00][%mdl 64] Deflection} 18. Bxb3 {[%emt 0:01:33]} Nd3 {[%emt 0:00:00]} 19. Re3 {[%emt 0:10:27]} Nxc1 {[%emt 0:00:00]} 20. Rxc1 {[%emt 0:00:03]} (20. Qxc1 Bh6 $15) 20... Bh6 {[%emt 0:00:00] This pair of bishops is nice.} 21. Re1 {[%emt 0:01:18]} Bxc1 {[%emt 0:00:00]} 22. Qxc1 {[%emt 0:00:05]} Re8 {[%emt 0:00:00]} 23. Bc2 {[%emt 0:02:35][%mdl 1024] White has compensation.} Nd7 {[%emt 0:00:00]} 24. Qd2 {[%emt 0:05:36]} (24. Nd4 {keeps more tension.} Qf6 25. Rd1 Ne5 26. Nc3) 24... Bb7 {[%emt 0:00:00]} 25. Qc3 {[%emt 0:10:36]} (25. Nd4 $11) 25... Ne5 $15 {[%emt 0:00:00]} 26. Nd4 {[%emt 0:01:42]} c5 {[%emt 0:00:00]} 27. dxc6 {[%emt 0:08:46] [#]} Nxc6 {[%emt 0:00:00]} 28. Bb3 {[%emt 0:07:29]} (28. Nxc6 Bxc6 29. Qd4 (29. Qxc6 Rc8 $15 {[%mdl 64] Deflection}) 29... Qg5 $17) (28. Nb5 Re5) 28... Nxd4 {[%emt 0:00:00]} (28... Rc8 $5 {[%cal Rd6d5]} 29. Qd2 d5 $17) 29. Qxd4 {[%emt 0:00:20]} Rb8 {[%emt 0:00:00]} 30. Nc3 {[%emt 0:09:12]} Qe7 {[%emt 0:00:00]} (30... Qg5 {is more complex.} 31. Qxd6 Ba8 32. Bd5 Rxb2 33. Bxa8 Rd8) 31. Re3 {[%emt 0:01:48]} Qe5 {[%emt 0:00:00]} (31... Ba8 $5 {[%cal Rb8b3]} 32. Nd5 Bxd5 33. Bxd5 Qe5 $15) 32. Qa7 {[%emt 0:02:26]} (32. Qd2 $11 {keeps the balance.}) 32... Qc5 $17 {[%emt 0:00:00]} 33. Qxc5 {[%emt 0:01:12]} dxc5 {[%emt 0:00:00]} 34. f3 {[%emt 0:02:47]} Red8 {[%emt 0:00:00] Threatens to win with ...Rd2.} 35. Na4 {[%emt 0:02:11]} (35. Bc4 $17 {is a better defense.}) 35... Rbc8 {[%emt 0:00:00]} (35... Rd2 $19 {[%cal Oc5c4] Strongly threatening ...c4!} 36. Rc3 Bc6 37. Nxc5 Rxb2) 36. Rc3 {[%emt 0:05:09] Prevents c4.} Rd2 {[%emt 0:00:00]} 37. Nb6 {[%emt 0:00:36]} Rb8 {[%emt 0:00:00]} ({Black should play} 37... Rcd8 $17 38. Nc4 R2d3) 38. Nc4 $36 {[%emt 0:00:49][%mdl 2048] Black is under pressure.} Rd7 {[%emt 0:00:00]} 39. Ba4 {[%emt 0:03:16]} Rd4 {[%emt 0:00:00]} 40. b3 $1 {[%emt 0:00:28]} Ba6 {[%emt 0:08:28]} 41. Nxa5 {[%emt 0:00:46]} Rd1+ {[%emt 0:00:35]} 42. Kh2 {[%emt 0:01:07]} Rd2 {[%emt 0:01:02]} 43. Nc4 {[%emt 0:00:44]} Ra2 {[%emt 0:00:39]} 44. h4 {[%emt 0:00:29]} Rd8 {[%emt 0:00:38]} 45. Ne3 {[%emt 0:00:34]} (45. Kh3 $1 $15) 45... Rd3 $17 {[%emt 0:00:22] Black is more active.} (45... Rxa3 $6 46. Rxc5 Rc8 47. Ra5 $11) 46. Rxd3 {[%emt 0:00:30]} Bxd3 {[%emt 0:00:01][%mdl 4096] Endgame KRB-KBN} 47. Kg3 $2 {[%emt 0:00:32]} (47. Bc6 $17) 47... Rxa3 $19 {[%emt 0:00:16]} 48. Kf4 {[%emt 0:00:17] [#]} c4 {[%emt 0:00:54]} 49. Bb5 $17 {[%emt 0:00:13]} cxb3 {[%emt 0:01:42]} (49... Rxb3 {simplifies} 50. Bxc4 Bxc4 51. Nxc4 h6) 50. Bxd3 {[%emt 0:00:06]} b2 {[%emt 0:00:05]} 51. Bc2 {[%emt 0:00:25]} Rc3 {[%emt 0:00:13][%cal Oc3c2] And now ...Rxc2! would win.} 52. Bb1 {[%emt 0:00:23]} Rc1 {[%emt 0:00:12]} 53. Bd3 {[%emt 0:00:15]} Kg7 {[%emt 0:01:03]} 54. g3 {[%emt 0:00:31]} f6 {[%emt 0:00:22]} 55. Nd5 {[%emt 0:00:57]} h5 {[%emt 0:03:01]} (55... Kf7 {simplifies} 56. Nb6 b1=R 57. Bxb1 Rxb1 58. Nd5 Rc1) 56. Ne3 $2 {[%emt 0:01:18] [#]} (56. Ne7 $17) 56... Kh6 $2 {[%emt 0:02:36]} (56... b1=B 57. Bxb1 Rxb1 58. Nc2 $17) (56... b1=N 57. Nc2 $17) (56... b1=Q 57. Bxb1 Rxb1 58. g4 $17) (56... Rc3 $1 $19 {[%cal Rc3d3]} 57. Nd1 Rxd3 58. Nxb2 Rb3) 57. Nd5 {[%emt 0:00:24]} Kg7 $2 {[%emt 0:00:07]} ({Don't play} 57... b1=B $6 58. Bxb1 Rxb1 59. Nxf6 $11) (57... Rd1 $17 58. Bc2 Kg7) 58. Ne3 $1 $19 {[%emt 0:00:34] [#]} Rc3 $1 {[%emt 0:00:17]} ({Not} 58... b1=B 59. Bxb1 Rxb1 60. Nc2 $17) ({Stronger than} 58... b1=N 59. Nd5 $17) (58... b1=Q 59. Bxb1 Rxb1 60. Nd5 $17) 59. Bb1 {[%emt 0:00:04] [#]} (59. Nd1 $19 Rxd3 60. Nxb2) 59... g5+ $1 {[%emt 0:00:16][%mdl 576] Deflection. Black mates.} 60. hxg5 {[%emt 0:00:18]} fxg5+ {[%emt 0:00:01]} 61. Kxg5 {[%emt 0:00:09]} Rxe3 {[%emt 0:00:03]} 62. Kxh5 {[%emt 0:00:05]} Rxf3 {[%emt 0:00:10] KR-KB} 63. g4 {[%emt 0:00:36]} Rf1 {[%emt 0:00:26]} 64. Bc2 {[%emt 0:00:04]} b1=Q {[%emt 0:00:24]} 65. Bxb1 {[%emt 0:00:03]} Rxb1 {[%emt 0:00:06]} 66. Kg5 {[%emt 0:00:11]} Rb5+ {[%emt 0:00:25] Weighted Error Value: White=0.32/Black=0.18 (very precise)} 0-1

[Event "WALTON 1st Div Women League 2023"]
[Site "Dhaka"]
[Date "2023.03.28"]
[Round "7.6"]
[White "Essaba, Masnun"]
[Black "Jarin, Tasnim"]
[Result "*"]
[ECO "C70"]
[WhiteElo "1325"]
[BlackElo "1180"]
[Annotator "NA RC COMBH"]
[PlyCount "29"]
[EventDate "2023.03.22"]
[EventType "team-tourn"]
[EventCountry "BAN"]
[SourceTitle "playchess.com"]
[Source "ChessBase"]
[SourceQuality "1"]
[TimeControl "5400+30"]

1. e4 {[%emt 0:00:03]} e5 {[%emt 0:00:14]} 2. Nf3 {[%emt 0:00:06]} Nc6 {[%emt 0:00:06]} 3. Bb5 {[%emt 0:00:13]} a6 {[%emt 0:00:12]} 4. Ba4 {[%emt 0:00:11]} g6 {[%emt 0:00:12]} 5. c3 {[%emt 0:02:12]} Bg7 {[%emt 0:00:11]} 6. d4 {[%emt 0:01:02]} exd4 {[%emt 0:00:08]} 7. cxd4 {[%emt 0:00:06]} b5 {[%emt 0:00:20]} 8. Bc2 {[%emt 0:00:44]} d6 {[%emt 0:00:00]} 9. d5 {[%emt 0:00:50]} Nb4 {[%emt 0:00:00]} 10. Bb3 {[%emt 0:00:56]} a5 {[%emt 0:00:00]} 11. a3 {[%emt 0:00:52]} Na6 {[%emt 0:02:00]} 12. O-O {[%emt 1:29:15]} Nc5 {[%emt 0:00:00]} 13. Bc2 {[%emt 0:00:17]} Nf6 {[%emt 0:00:00]} 14. Nc3 {[%emt 0:05:16]} O-O {[%emt 0:00:00]} 15. h3 {[%emt 0:04:20]} *

[Event "WALTON 1st Div Women League 2023"]
[Site "Dhaka"]
[Date "2023.03.28"]
[Round "7.7"]
[White "Parveen, Tanima"]
[Black "Noshin, Anjum"]
[Result "1/2-1/2"]
[ECO "C93"]
[WhiteElo "1960"]
[BlackElo "1877"]
[Annotator "TA"]
[PlyCount "75"]
[EventDate "2023.03.22"]
[EventType "team-tourn"]
[EventCountry "BAN"]
[SourceTitle "playchess.com"]
[Source "ChessBase"]
[SourceQuality "1"]
[TimeControl "5400+30"]

{[%evp 32,75,37,37,35,0,11,0,0,0,0,-6,-5,-6,-9,-9,-9,-8,0,0,0,-12,83,74,95,95,104,97,100,97,144,138,194,195,195,181,190,182,176,0,171,0,168,0,161,0]} 1. e4 {[%emt 0:00:03]} e5 {[%emt 0:00:13]} 2. Nf3 {[%emt 0:00:25]} Nc6 {[%emt 0:00:10]} 3. Bb5 {[%emt 0:00:11][%cal Bf1b5,Bb5a4,Ba4b3][%mdl 32]} a6 {[%emt 0:00:09]} 4. Ba4 {[%emt 0:00:06]} Nf6 {[%emt 0:00:06]} 5. O-O {[%emt 0:00:12]} Be7 {[%emt 0:00:24]} 6. Re1 {[%emt 0:00:32]} b5 {[%emt 0:00:48]} 7. Bb3 {[%emt 0:00:12]} d6 {[%emt 0:00:14]} 8. c3 {[%emt 0:00:34]} O-O {[%emt 0:00:16]} 9. h3 {[%emt 0:00:44]} Bb7 {[%emt 0:00:19]} 10. d4 {[%emt 0:01:00]} Re8 {[%emt 0:03:18]} 11. Ng5 {[%emt 0:14:55]} Rf8 {[%emt 1:30:03]} 12. Nf3 {[%emt 0:00:40]} h6 {[%emt 0:00:00]} 13. Nbd2 {[%emt 0:00:57]} Re8 {[%emt 0:00:00]} 14. Nf1 {[%emt 0:00:25]} Bf8 {[%emt 0:00:00]} 15. Ng3 {[%emt 0:00:14]} Na5 {[%emt 0:00:00]} 16. Bc2 {[%emt 0:00:16]} Nc4 {[%emt 0:00:00]} 17. a4 {[%emt 0:06:40]} Nb6 {[%emt 0:00:00] C93: Closed Ruy Lopez: Smyslov Variation.} 18. dxe5 {[%emt 0:14:48]} dxe5 {[%emt 0:00:00]} 19. Qxd8 {[%emt 0:04:52]} Raxd8 {[%emt 0:00:00] The position is equal.} 20. axb5 {[%emt 0:00:30]} axb5 {[%emt 0:00:00] [#]} 21. Ra5 $146 {[%emt 0:01:05]} ({Predecessor:} 21. Ra7 Rb8 22. b3 b4 23. Bd2 bxc3 24. Bxc3 Nbd7 25. b4 g6 26. Ba4 Bd6 {½-½ Rabatin,J (2317)-Cvek,R (2517) Vsetin op 40th 2015 (3)}) 21... Nc4 {[%emt 0:00:00]} 22. Ra7 {[%emt 0:05:45]} Rb8 {[%emt 0:00:00]} 23. b3 {[%emt 0:04:44]} Nd6 {[%emt 0:00:00]} 24. Be3 {[%emt 0:11:50]} Bxe4 {[%emt 0:00:00]} 25. Nxe4 {[%emt 0:01:55]} Ndxe4 {[%emt 0:00:00]} 26. Rxc7 {[%emt 0:02:16][%cal Ba7c7,Bc7c3,Bc3c6][%mdl 32] [#]} Nxc3 {[%emt 0:00:00]} 27. Rxc3 $16 {[%emt 0:11:31] And now Rc6 would win.} Bb4 {[%emt 0:00:00] [#]} 28. Rc6 {[%emt 0:02:01] Strongly threatening Rd1.} Bxe1 {[%emt 0:00:00]} 29. Nxe1 {[%emt 0:00:07][%cal Oe3h6]} Nd5 {[%emt 0:00:00]} 30. Bd2 {[%emt 0:02:06] Prevents Nb4.} e4 {[%emt 0:00:00]} ({Better is} 30... Rec8 31. Rxc8+ Rxc8) 31. Rc5 {[%emt 0:03:02]} e3 {[%emt 0:02:20]} (31... Nf6 $16 32. Be3 Rec8) 32. fxe3 $18 {[%emt 0:01:45]} ({But not} 32. Rxd5 $6 exd2 33. Nf3 Rbd8 34. Rxd8 (34. Rxd2 $2 {loses.} Rxd2 35. Nxd2 Re2 $19) 34... Rxd8 $16) 32... Nxe3 {[%emt 0:00:06]} 33. Bd3 {[%emt 0:00:39]} b4 {[%emt 0:03:01]} 34. Bb5 {[%emt 0:02:10] This pair of bishops is nice.} Re4 {[%emt 0:01:15]} 35. Bd3 {[%emt 0:02:21]} Ree8 {[%emt 0:00:27]} 36. Bb5 {[%emt 0:00:11]} Re4 {[%emt 0:00:15]} 37. Bd3 {[%emt 0:00:13]} Ree8 {[%emt 0:01:53]} 38. Bb5 $2 {[%emt 0:00:06] Weighted Error Value: White=0.36/Black=0.14 (very precise)} (38. Nf3 $18) 1/2-1/2

[Event "WALTON 1st Div Women League 2023"]
[Site "Dhaka"]
[Date "2023.03.28"]
[Round "7.7"]
[White "Zowena, Mehbish"]
[Black "Warisa Haider"]
[Result "*"]
[ECO "C92"]
[WhiteElo "1121"]
[BlackElo "1302"]
[Annotator "NA RC COMBH"]
[PlyCount "24"]
[EventDate "2023.03.22"]
[EventType "team-tourn"]
[EventCountry "BAN"]
[SourceTitle "playchess.com"]
[Source "ChessBase"]
[SourceQuality "1"]
[TimeControl "5400+30"]

1. e4 {[%emt 0:00:03]} e5 {[%emt 0:00:13]} 2. Nf3 {[%emt 0:00:25]} Nc6 {[%emt 0:00:10]} 3. Bb5 {[%emt 0:00:11]} a6 {[%emt 0:00:09]} 4. Ba4 {[%emt 0:00:06]} Nf6 {[%emt 0:00:06]} 5. O-O {[%emt 0:00:12]} Be7 {[%emt 0:00:24]} 6. Re1 {[%emt 0:00:32]} b5 {[%emt 0:00:48]} 7. Bb3 {[%emt 0:00:12]} d6 {[%emt 0:00:14]} 8. c3 {[%emt 0:00:34]} O-O {[%emt 0:00:16]} 9. h3 {[%emt 0:00:44]} Bb7 {[%emt 0:00:19]} 10. d4 {[%emt 0:01:00]} Re8 {[%emt 0:03:18]} 11. Ng5 {[%emt 0:14:55]} Rf8 {[%emt 0:00:18]} 12. Nf3 {[%emt 0:00:40]} h6 {[%emt 0:00:00]} *